Cogmind - Beta 13 @@@ ROGUE MODE // 2024.04.08 @ 22:00:22 Player: puppuppit Result: Destroyed by Autobeam Turret with Autobeam Performance ------------- Evolutions (0) 0 Regions Visited (2) 400 Robots Destroyed (34) 170 Value Destroyed (757) 757 Prototype IDs (0) 0 Alien Tech Used (0) 0 Bonus (14) 14 TOTAL SCORE: 1341 Bonus ------- High Alert Combat Kills 14 Cogmind --------- Core Integrity 0/250 Matter 32/300 Energy 98/100 System Corruption 0% Temperature Cool (6) Movement Core (50) Location -10/Subcaves Parts ------- > --- POWER (1) -------- (None) > --- PROPULSION (2) --- (None) > --- UTILITY (2) ------ Improved Terrain Scanner > --- WEAPON (2) ------- Light Assault Rifle > --- INVENTORY (5) ---- Light Assault Rifle Light Assault Rifle Subdweller Machine Gun Subdweller Shrapnel Launcher Enhanced Flamer Peak State ------------ > --- POWER ------------ Subdweller Power Source > --- PROPULSION ------- Backup Propulsion I Backup Propulsion I > --- UTILITY ---------- Small Storage Unit Improved Terrain Scanner > --- WEAPON ----------- Light Assault Rifle Light Assault Rifle > --- INVENTORY -------- Backup Propulsion I Subdweller Optics Hacking Suite Grenade Launcher Subdweller Shrapnel Launcher Datajack [Rating: 11] Favorites ----------- Power Light Ion Engine Engine Light Ion Engine Propulsion Backup Propulsion I Wheel Wheel Hover Unit Backup Propulsion I Utility Small Storage Unit Device Improved Terrain Scanner Storage Small Storage Unit Weapon Light Assault Rifle Energy Gun Small Laser Ballistic Gun Light Assault Rifle Launcher Grenade Launcher Build | -11 -10 -10 ------- Run | Yrd Mat Sub Slots Evolved . | . . . Power . | . . . Propulsion . | . . . Utility . | . . . Weapon . | . . . Parts Attached 42 | 9 19 14 Power 5 | 2 1 2 Engine 5 | 2 1 2 Core . | . . . Reactor . | . . . Propulsion 14 | 3 8 3 Treads . | . . . Leg . | . . . Wheel 9 | 3 6 . Hover 5 | . 2 3 Flight . | . . . Utility 2 | 2 . . Device 1 | 1 . . Storage 1 | 1 . . Processor . | . . . Hackware . | . . . Protection . | . . . Artifact . | . . . Weapon 21 | 2 10 9 Energy Gun 2 | 2 . . Energy Cannon . | . . . Ballistic Gun 6 | . 4 2 Ballistic Cannon . | . . . Launcher 13 | . 6 7 Special Weapon . | . . . Impact Weapon . | . . . Slashing Weapon . | . . . Piercing Weapon . | . . . Special Melee Weapon . | . . . Unidentified Prototypes . | . . . Parts Lost 9 | . 2 7 Power 2 | . . 2 Propulsion 6 | . 1 5 Utility . | . . . Weapon 1 | . 1 . Highest Loss Streak 3 | . 2 3 To Critical Strikes . | . . . Average Slot Usage (%) 83 | . 97 77 Engine 7 | . 12 5 Wheel 8 | . 26 . Hover 18 | . 1 27 Device 14 | . 14 14 Storage 13 | . 14 13 Energy Gun 2 | . 8 . Ballistic Gun 13 | . 12 13 Launcher 3 | . 5 2 Naked Turns . | . . . Heaviest Build 15 | 14 15 13 Greatest Support 26 | 26 20 12 Greatest Overweight (x) 2 | . . 2 Average Overweight (x) . | . . . Largest Inventory Capacity 8 | 8 8 8 Average Capacity 7 | 7 8 7 Most Carried 8 | 4 8 8 Average Carried 6 | . 7 6 Final Capacity 8 | 8 8 5 Final Carried 8 | 4 8 5 Class Distribution -------------------- 74% | Mutant 25% | Scavenger-Mutant Dominant Class ---------------- Scavenger-Mutant | -10/Materials Mutant | -10/Subcaves Resources | -11 -10 -10 ----------- Run | Yrd Mat Sub Matter Collected 799 | 239 191 369 Remotely . | . . . Salvage Created 634 | 146 203 285 Parts 73 | 20 28 25 Haulers Intercepted . | . . . Recyclers Shooed 1 | 1 . . Parts Field Recycled . | . . . Retrieved Matter . | . . . Parts Self-Destructed 12 | . . 12 Prevented . | . . . Kills | -11 -10 -10 ------- Run | Yrd Mat Sub Combat Hostiles Destroyed 24 | . 12 12 Guns 3 | . 3 . AOE 21 | . 9 12 Classes Destroyed 8 | 2 5 1 Builder 2 | . 2 . Tunneler 5 | 5 . . Recycler 1 | 1 . . Operator 1 | . 1 . Watcher 1 | . 1 . Swarmer 10 | . 8 2 Grunt 7 | . 4 3 Subdweller 7 | . . 7 Best Kill Streak 6 | 5 6 2 Combat Bots Only 5 | . 5 2 Max Kills in Single Turn 3 | 2 3 1 Gunslinging . | . . . Exploded 3 | . 3 1 Melee . | . . . Uniques/NPCs Destroyed . | . . . Combat | -11 -10 -10 -------- Run | Yrd Mat Sub Hostile Shots Fired 106 | . 41 65 Missed 45 | . 14 31 Damage Taken 838 | . 322 516 Core 253 | . 45 208 Absorbed by Shields . | . . . Core Remaining (%) 100 | 100 . . Volleys Fired 61 | 10 31 20 Largest 2 | 2 2 2 Hottest 80 | 80 80 60 Shots Fired 108 | 18 58 32 Gun 77 | 18 47 12 Cannon . | . . . Launcher 31 | . 11 20 Special . | . . . Kinetic 47 | . 20 27 Thermal 22 | 8 14 . Explosive 16 | . 11 5 Electromagnetic 23 | 10 13 . Robot Hit Streak 11 | 7 9 11 Robot Miss Streak 3 | 2 3 2 Penetration Max . | . . . Secondary Targets . | . . . Shots Hit Robots 66 | 13 34 19 Core Hits 51 | 7 24 20 Critical Kills . | . . . Critical Parts Destroyed . | . . . Critical Strikes . | . . . Melee Attacks . | . . . Impact . | . . . Slashing . | . . . Piercing . | . . . Sneak Attacks . | . . . Combat Hostiles . | . . . Follow-up Attacks . | . . . Damage Inflicted 2215 | 181 916 1118 Guns 526 | 181 286 59 Cannons . | . . . Explosions 1689 | . 630 1059 Melee . | . . . Ramming . | . . . Kinetic 962 | . 111 851 Thermal 181 | 67 114 . Explosive 864 | . 597 267 Electromagnetic 208 | 114 94 . Impact . | . . . Slashing . | . . . Piercing . | . . . Highest Corruption . | . . . Average Corruption . | . . . Corruption Purged . | . . . Corruption Blocked . | . . . Overload Shots . | . . . Overflow Damage 49 | . 29 20 Projectiles . | . . . Explosions 49 | . 29 20 Melee . | . . . Knockbacks . | . . . Impact . | . . . Kinetic . | . . . Secondary . | . . . Self-Inflicted Damage 146 | . 68 78 Shots 5 | . 3 2 Rammed . | . . . Targets Rammed . | . . . Kicked . | . . . Crushed . | . . . Highest Temperature 256 | 90 256 1 Average Temperature 85 | 40 113 1 Received Heat Transfer 171 | . 90 81 Siege Activations . | . . . Robots Corrupted . | . . . Combat Hostiles . | . . . Parts Fried 1 | 1 . . Impact Corruptions . | . . . Robots Melted . | . . . Combat Hostiles . | . . . Parts Melted . | . . . Heat Transferred 325 | 150 175 . Parts Sabotaged . | . . . Parts Stolen . | . . . Parts Stripped . | . . . Power Chain Reactions 1 | . 1 . Alert | -11 -10 -10 ------- Run | Yrd Mat Sub Peak Influence 577 | 30 577 . Initial 19 | . 19 . Average 296 | 13 353 . Maximum Alert Level 2 | . 2 . Low Security (%) 44 | 100 33 . Level 1 15 | . 18 . Level 2 40 | . 48 . Level 3 . | . . . Level 4 . | . . . Level 5 . | . . . High Security . | . . . Max Security . | . . . Squads Dispatched 3 | . 3 . Investigation 1 | . 1 . Extermination . | . . . Reinforcement 2 | . 2 . Assault . | . . . Garrison . | . . . Intercept . | . . . Searches Triggered . | . . . Construction Impeded . | . . . Haulers Reinforced . | . . . Active Scanning Responses . | . . . Cargo Convoy Interrupts . | . . . Stealth | -11 -10 -10 --------- Run | Yrd Mat Sub Distress Signals . | . . . Communications Jammed . | . . . Distress Signals . | . . . Times Spotted 51 | . 28 23 Peak Tracking Total 6 | . 6 6 Tactical Retreats 9 | . 3 6 Traps | -11 -10 -10 ------- Run | Yrd Mat Sub Traps Triggered 2 | . 1 1 Indirectly . | . . . Trap Hack Attempts . | . . . Triggered . | . . . Disarmed 6 | . 6 . Reprogrammed 1 | . 1 . Reused . | . . . Traps Extracted . | . . . Installed . | . . . Triggered . | . . . Machines | -11 -10 -10 ---------- Run | Yrd Mat Sub Machines Disabled 7 | . 3 4 Max in Single Turn 4 | . 1 4 Machines Repaired . | . . . Machines Dismantled . | . . . Machines Sabotaged . | . . . Overloaded Fab Kills . | . . . Hacking | -11 -10 -10 --------- Run | Yrd Mat Sub Machines Accessed 4 | . 4 . Terminals 3 | . 3 . Fabricators . | . . . Repair Stations 1 | . 1 . Recycling Units . | . . . Scanalyzers . | . . . Garrison Access . | . . . Total Hacks 15 | . 15 . Successful 7 | . 7 . Failed 7 | . 7 . Catastrophic 1 | . 1 . Database Lockouts 1 | . 1 . Manual 4 | . 4 . Terminals 11 | . 11 . Fabricators . | . . . Repair Stations 4 | . 4 . Recycling Units . | . . . Scanalyzers . | . . . Garrison Access . | . . . Terminal Hacks 5 | . 5 . Robot Analysis 1 | . 1 . Disarm Traps 2 | . 2 . Reprogram Traps 1 | . 1 . Recall Investigation 1 | . 1 . Fabricator Hacks . | . . . Repair Station Hacks 2 | . 2 . Refit 2 | . 2 . Recycling Unit Hacks . | . . . Scanalyzer . | . . . Garrison Access Hacks . | . . . Unauthorized Hacks . | . . . Terminals . | . . . Fabricators . | . . . Repair Stations . | . . . Recycling Units . | . . . Scanalyzers . | . . . Garrison Access . | . . . Data Cores Recovered . | . . . Used . | . . . Hacking Detections 4 | . 4 . Full Trace Events 1 | . 1 . Feedback Events . | . . . Feedback Blocked . | . . . Robot Schematics Acquired . | . . . Robots Built . | . . . Authchips . | . . . Time . | . . . Total Robot Build Rating . | . . . Part Schematics Acquired . | . . . Parts Built . | . . . Authchips . | . . . Time . | . . . Total Part Build Rating . | . . . Parts Repaired . | . . . Time . | . . . Parts Recycled . | . . . Recycled Matter . | . . . Retrieved Matter . | . . . Retrieved Components . | . . . Parts Scanalyzed . | . . . Part Schematics Acquired . | . . . Parts Damaged . | . . . Bothacking | -11 -10 -10 ------------ Run | Yrd Mat Sub Used RIF Installer . | . . . Robots Hacked . | . . . Non-combat . | . . . Combat . | . . . Robot Hacks Applied . | . . . Relay Couplers Released . | . . . Fabnet Peak Effective % . | . . . Robots Rewired . | . . . Allies Hacked . | . . . Hacks Repelled . | . . . Allies | -11 -10 -10 -------- Run | Yrd Mat Sub Total Allies . | . . . Largest Group . | . . . Highest-Rated Group . | . . . Highest-Rated Ally . | . . . Total Orders . | . . . Ally Attacks . | . . . Total Damage . | . . . Kills . | . . . Allies Corrupted . | . . . Allies Melted . | . . . Intel | -11 -10 -10 ------- Run | Yrd Mat Sub Robot Analysis Total 1 | . 1 . Derelict Logs Recovered 1 | . . 1 Drone Launches . | . . . Drone Recoveries . | . . . Exploration | -11 -10 -10 ------------- Run | Yrd Mat Sub Turns Passed 1408 | 84 422 902 Spaces Moved 1430 | 44 374 1012 Core 37 | 2 . 35 Treads . | . . . Legs . | . . . Wheels 387 | 42 345 . Hover 1006 | . 29 977 Flight . | . . . Fastest Speed 50 | 50 66 50 Average Speed 76 | 83 78 74 Slowest Speed 150 | 100 80 150 Overloaded Moves . | . . . Propulsion Burnouts . | . . . Robots Hopped . | . . . Cave-ins Triggered . | . . . Exploration Rate (%) 33 | 3 56 42 Regions Visited 2 Branch Regions 1 Pre-discovered Areas . | . . . Known Exits Taken . | . . . Unknown Exits Taken 2 | 1 1 . Scrap Searched 1 | . . 1 Spaces Dug . | . . . Terrain Destroyed 275 | . 65 210 Melee . | . . . Projectile . | . . . AOE 275 | . 65 210 Terrain Rammed . | . . . Walls Destroyed . | . . . Machines Disabled . | . . . Actions | -11 -10 -10 --------- Run | Yrd Mat Sub Total 1653 | 70 453 1130 Wait 68 | . 4 64 Move 1428 | 43 373 1012 Hop . | . . . Pick Up 19 | 5 8 6 Fast Attach 13 | 8 4 1 Attach 16 | . 5 11 Detach 16 | 1 6 9 Swap 13 | 1 10 2 Drop 19 | 2 12 5 Fire 61 | 10 31 20 Melee . | . . . Ram . | . . . Kick . | . . . Crush . | . . . Escape Stasis . | . . . Rewire . | . . . Trap . | . . . Miscellaneous . | . . . Route ------- -11/Scrapyard -10/Materials (discovered 3 exits: [*Mat] / [*Min] / [*Sub]) -10/Subcaves (discovered 2 exits: [*Mat] / [*Rec]) History --------- Turn | Location | Event 10 | -11/Scrapyard | Discovered new exit (range 16) 85 | -11/Scrapyard | Entered Materials 305 | -10/Materials | Central database locked down 428 | -10/Materials | Discovered new exit (range 10) 468 | -10/Materials | Discovered new exit (range 16) 495 | -10/Materials | Discovered new exit (range 14) 507 | -10/Materials | Entered Subcaves 510 | -10/Subcaves | Build established: Scavenger-Mutant 605 | -10/Subcaves | Core integrity fell below 50% 635 | -10/Subcaves | Lost 3 parts (1p2n) 700 | -10/Subcaves | Discovered new exit (range 15) 845 | -10/Subcaves | Build established: Mutant 1258 | -10/Subcaves | Shifting Twisted Machinery released Sub. Machine Gun 1273 | -10/Subcaves | Shifting Twisted Machinery released Enh. Flamer 1378 | -10/Subcaves | Discovered new exit (range 15) 1382 | -10/Subcaves | Core integrity fell below 20% 1409 | -10/Subcaves | Destroyed by Autobeam Turret with Autobeam Last Messages --------------- 01293_ Sml. Laser fries itself beyond repair. 01309_ G-47 Trooper destroyed. 01312_ Subatomizers dissect the Sub. Machine Gun. 01314_ Particle Gun fries itself beyond repair. 01319_ Aluminum Leg fries itself beyond repair. 01321_ Acquired 48 matter. 01323_ Subatomizers dissect the Sub. Machine Gun. 01324_ Aluminum Leg fries itself beyond repair. 01326_ Acquired 24 matter. 01335_ Acquired Enh. Flamer. 01378_ EXIT=FOUND 01379_ S-10 Pest destroyed. 01385_ Flight Unit fries itself beyond repair. 01386_ Backup Propulsion I destroyed. 01387_ S-10 Pest destroyed. 01387_ Backup Propulsion I destroyed. 01388_ Subatomizers dissect the Flight Unit, destroying it. 01391_ Destroyed Lgt. Ion Engine. 01391_ S-10 Pest destroyed. 01393_ Dropped Sml. Storage Unit. Map ----- +----------------------------------------------------+ | [ & """# #??????????????????????????????????? | | & "# ##??????????????????????????????????? | | ## #??????????????????????????????????? | | ##?????????????????????????????????? | | # #??????????????????????????????????? | | " ## #??????????????????????????????????? | | " # ##??????????????????????????????????? | | ###" #??????#????????????????????????????? | | ## " # #???????#??????????????????????????? | | "######?#?????<#?#???????????????????????? | | ###???????????? """"#?????????????????????? | | #?????#??????? #?????????????????????? | | "" #????#?#??? t t #??? ?????????????????? | | ""####???????# ??? #?????????????????? | | "# ###?????# ??? ??????????????????? | | ######? ?? ??????????????????? | | "" # ###; ;"? ?? ????????????????? | | ## ## " #???????????????? | | " " ## ; " #???????????????? | | #"#" "" ### ### ;# ????????????????? | | ###### ##?###?## ;# #??????????????????? | | ?????###??????# % #??????????????????? | | ??????????????## ##??????????????????? | | #??????????????##;;; ##???????????????????? | | #??????????#????# ###????????????????????? | | ????????????????# ; @##?????????????????????? | | ????????????????#;; ######????????????????? | | ???????????????## / #????????????????? | | ???????????????#; !! #????????????????? | | ???????????????#;;! ##????????????????? | | ???????????????#### ;# ## #?????????????????? | | ??????????????????######### #?????????????????? | | ?????????????????????????# #?????????????????? | | ????????????????????????## #?????????????????? | | ????????????????????????# ##????????????????? | | ????????????????????????## ##???????????????? | | ?????????????????????????## ##??????????????? | | ?????????????????????????## #??????????????? | | ?????????????????????????# #??????????????? | | ?????????????????????????# ##??????????????? | | ?????????????????????????## ### ##???????????????? | | ??????????????????????????###??##????????????????? | | ?????????????????????????????????????????????????? | | ?????????????????????????????????????????????????? | | ?????????????????????????????????????????????????? | | ?????????????????????????????????????????????????? | | ?????????????????????????????????????????????????? | | ?????????????????????????????????????????????????? | | ?????????????????????????????????????????????????? | | ?????????????????????????????????????????????????? | +----------------------------------------------------+ Best States ------------- Heat Dissipation 25 Energy Generation 15 Energy Capacity 250 Matter Stores 249 Matter Capacity 300 Sight Range 16 Terrain Scan Range 16 Terrain Scan Density 10 Evasion (%) 51 Item Schematics ----------------- None Robot Schematics ------------------ None Fabricated ------------ Nothing Alien Tech Used ----------------- None Achievements -------------- None Challenges ------------ None Game ------ Seed LightpackGlidesysModule Manual? 0 Play Time 00:15:50 Cumulative 235.2 hours Start 2024.04.08 @ 21:45:52 End 2024.04.08 @ 22:00:22 Sessions 1 Manual Loads 0 Difficulty Rogue Special Mode None Game No. 97 Rogue 97 Adventurer 0 Explorer 0 Win Type - Total 1 Types 0/0/1/0/0/0/0/0/0 Lore% 63 Gallery% 70 Achievement% 57 Wizard Run 0 Options --------- Layout 0 ASCII 0 Keyboard 1 Movement Arrows Keybinds 0 Fullscreen 1 Font 12/Proggy Map View 83x54 Zoom Use 0% Tactical HUD 1 Map Filters NONE Filters NONE Steam 0 RUN: 1b83a729-e9c4-4ead-b6b4-2fca62da7686